[Event "Titled Tuesday Blitz March 29 Late 2022"]
[White "Jaferian, Koosha"]
[Black "Bluebaum, Matthias"]
[WhiteFideId "12507440"]
[BlackFideId "24651516"]
[WhiteElo "2030"]
[BlackElo "2550"]
[Result "0-1"]
[Round "02"]
[TimeControl "180+1"]
[Date "2022.03.29"]
[WhiteClock "0:00:03"]
[BlackClock "0:00:24"]

1. Nf3 {[%clk 0:03:00]}  d5 {[%clk 0:02:59]} 2. b3 {[%clk 0:03:01]}  Bg4 {[%clk 0:02:59]} 3. Bb2 {[%clk 0:03:01]}  Nd7 {[%clk 0:02:59]} 4. e3 {[%clk 0:03:01]}  e6 {[%clk 0:02:58]} 5. Be2 {[%clk 0:03:01]}  Ngf6 {[%clk 0:02:58]} 6. O-O {[%clk 0:03:01]}  Bd6 {[%clk 0:02:59]} 7. c4 {[%clk 0:03:01]}  c6 {[%clk 0:02:59]} 8. d4 {[%clk 0:03:01]}  O-O {[%clk 0:02:59]} 9. Nbd2 {[%clk 0:03:00]}  Qe7 {[%clk 0:02:59]} 10. Ne5 {[%clk 0:03:01]}  Bxe2 {[%clk 0:02:59]} 11. Qxe2 {[%clk 0:03:02]}  Ba3 {[%clk 0:02:59]} 12. Bxa3 {[%clk 0:02:58]}  Qxa3 {[%clk 0:03:00]} 13. Nxd7 {[%clk 0:02:56]}  Nxd7 {[%clk 0:03:01]} 14. e4 {[%clk 0:02:49]}  dxe4 {[%clk 0:03:01]} 15. Nxe4 {[%clk 0:02:50]}  a5 {[%clk 0:03:01]} 16. Rab1 {[%clk 0:02:36]}  Rfd8 {[%clk 0:02:57]} 17. Qb2 {[%clk 0:02:36]}  Qxb2 {[%clk 0:02:32]} 18. Rxb2 {[%clk 0:02:37]}  Nf6 {[%clk 0:02:33]} 19. Nxf6+ {[%clk 0:02:37]}  gxf6 {[%clk 0:02:34]} 20. Rd2 {[%clk 0:02:33]}  Rd7 {[%clk 0:02:25]} 21. Rfd1 {[%clk 0:02:33]}  Rad8 {[%clk 0:02:25]} 22. f3 {[%clk 0:02:23]}  e5 {[%clk 0:02:01]} 23. d5 {[%clk 0:02:10]}  cxd5 {[%clk 0:02:02]} 24. cxd5 {[%clk 0:02:07]}  Kf8 {[%clk 0:02:02]} 25. Kf2 {[%clk 0:02:07]}  Ke7 {[%clk 0:02:02]} 26. Ke3 {[%clk 0:02:08]}  f5 {[%clk 0:01:58]} 27. Rc1 {[%clk 0:01:41]}  Kd6 {[%clk 0:01:11]} 28. a3 {[%clk 0:01:25]}  h5 {[%clk 0:01:09]} 29. b4 {[%clk 0:01:24]}  axb4 {[%clk 0:01:09]} 30. axb4 {[%clk 0:01:25]}  Ra8 {[%clk 0:01:09]} 31. Rc3 {[%clk 0:01:18]}  Ra4 {[%clk 0:01:06]} 32. Rb3 {[%clk 0:01:14]}  Rc7 {[%clk 0:01:05]} 33. f4 {[%clk 0:00:19]}  f6 {[%clk 0:01:04]} 34. Rf2 {[%clk 0:00:16]}  e4 {[%clk 0:00:56]} 35. Rd2 {[%clk 0:00:13]}  Rc4 {[%clk 0:00:56]} 36. Rd4 {[%clk 0:00:12]}  b5 {[%clk 0:00:52]} 37. h3 {[%clk 0:00:11]}  h4 {[%clk 0:00:52]} 38. Rxc4 {[%clk 0:00:09]}  bxc4 {[%clk 0:00:52]} 39. Rb1 {[%clk 0:00:09]}  Kxd5 {[%clk 0:00:52]} 40. Rd1+ {[%clk 0:00:09]}  Kc6 {[%clk 0:00:52]} 41. Kd4 {[%clk 0:00:08]}  Rxb4 {[%clk 0:00:52]} 42. Ra1 {[%clk 0:00:08]}  Kd6 {[%clk 0:00:33]} 43. Ra6+ {[%clk 0:00:07]}  Ke7 {[%clk 0:00:34]} 44. Ra7+ {[%clk 0:00:04]}  Ke6 {[%clk 0:00:34]} 45. Ra6+ {[%clk 0:00:05]}  Kf7 {[%clk 0:00:34]} 46. Kc5 {[%clk 0:00:04]}  Rb2 {[%clk 0:00:34]} 47. Kxc4 {[%clk 0:00:04]}  Rxg2 {[%clk 0:00:35]} 48. Kd5 {[%clk 0:00:04]}  Rf2 {[%clk 0:00:34]} 49. Ra7+ {[%clk 0:00:04]}  Kg6 {[%clk 0:00:35]} 50. Ke6 {[%clk 0:00:04]}  Rb2 {[%clk 0:00:22]} 51. Ra8 {[%clk 0:00:04]}  Rb6+ {[%clk 0:00:22]} 52. Kd5 {[%clk 0:00:05]}  Kf7 {[%clk 0:00:20]} 53. Ra7+ {[%clk 0:00:05]}  Kg6 {[%clk 0:00:21]} 54. Ra8 {[%clk 0:00:05]}  Rb7 {[%clk 0:00:21]} 55. Rh8 {[%clk 0:00:04]}  Rg7 {[%clk 0:00:21]} 56. Rxh4 {[%clk 0:00:04]}  Rg8 {[%clk 0:00:21]} 57. Kd4 {[%clk 0:00:02]}  Rd8+ {[%clk 0:00:22]} 58. Ke3 {[%clk 0:00:02]}  Ra8 {[%clk 0:00:22]} 59. Ke2 {[%clk 0:00:01]}  Ra2+ {[%clk 0:00:21]} 60. Ke3 {[%clk 0:00:02]}  Ra3+ {[%clk 0:00:21]} 61. Ke2 {[%clk 0:00:02]}  Rf3 {[%clk 0:00:22]} 62. Kd2 {[%clk 0:00:01]}  Kf7 {[%clk 0:00:21]} 63. Ke2 {[%clk 0:00:02]}  Ke6 {[%clk 0:00:21]} 64. Kd2 {[%clk 0:00:02]}  Kd5 {[%clk 0:00:22]} 65. Ke2 {[%clk 0:00:03]}  Kd4 {[%clk 0:00:22]} 66. Rh6 {[%clk 0:00:02]}  Rxf4 {[%clk 0:00:22]} 67. Rxf6 {[%clk 0:00:03]}  Ke5 {[%clk 0:00:23]} 68. Rf8 {[%clk 0:00:03]}  Rh4 {[%clk 0:00:23]} 69. Re8+ {[%clk 0:00:04]}  Kf4 {[%clk 0:00:24]} 70. Rh8 {[%clk 0:00:03]}  Rxh8 {[%clk 0:00:24]} 0-1


[Site "https://www.chess.com"]

[Event "Titled Tuesday Blitz March 29 Late 2022"]
[White "Janaszak, Dawid"]
[Black "Vifleemskaia, Svetlana"]
[WhiteFideId "1119206"]
[BlackFideId "4129490"]
[WhiteElo "2199"]
[BlackElo "1901"]
[Result "1/2-1/2"]
[Round "02"]
[TimeControl "180+1"]
[Date "2022.03.30"]
[WhiteClock "0:00:13"]
[BlackClock "0:00:05"]

1. d4 {[%clk 0:03:00]}  Nf6 {[%clk 0:02:58]} 2. c4 {[%clk 0:03:01]}  e6 {[%clk 0:02:58]} 3. g4 {[%clk 0:03:01]}  Bb4+ {[%clk 0:02:57]} 4. Nd2 {[%clk 0:02:56]}  Nxg4 {[%clk 0:02:53]} 5. e4 {[%clk 0:02:55]}  Nf6 {[%clk 0:02:52]} 6. e5 {[%clk 0:02:55]}  Ne4 {[%clk 0:02:50]} 7. Bd3 {[%clk 0:02:45]}  Nxd2 {[%clk 0:02:42]} 8. Bxd2 {[%clk 0:02:46]}  Bxd2+ {[%clk 0:02:43]} 9. Qxd2 {[%clk 0:02:47]}  h6 {[%clk 0:02:40]} 10. O-O-O {[%clk 0:02:45]}  d5 {[%clk 0:02:39]} 11. Ne2 {[%clk 0:02:37]}  Nc6 {[%clk 0:02:34]} 12. Rhg1 {[%clk 0:02:32]}  g6 {[%clk 0:02:31]} 13. Qf4 {[%clk 0:02:20]}  g5 {[%clk 0:02:22]} 14. Qe3 {[%clk 0:02:17]}  Ne7 {[%clk 0:02:15]} 15. Nc3 {[%clk 0:02:10]}  dxc4 {[%clk 0:02:14]} 16. Bxc4 {[%clk 0:02:10]}  Nd5 {[%clk 0:02:14]} 17. Qe4 {[%clk 0:02:03]}  Nxc3 {[%clk 0:01:56]} 18. bxc3 {[%clk 0:02:04]}  c6 {[%clk 0:01:55]} 19. f4 {[%clk 0:02:01]}  Qa5 {[%clk 0:01:54]} 20. Kb2 {[%clk 0:01:58]}  Bd7 {[%clk 0:01:46]} 21. fxg5 {[%clk 0:01:42]}  hxg5 {[%clk 0:01:45]} 22. Rd2 {[%clk 0:01:43]}  Rh3 {[%clk 0:01:36]} 23. Rc2 {[%clk 0:01:35]}  O-O-O {[%clk 0:01:32]} 24. Rxg5 {[%clk 0:01:33]}  Rdh8 {[%clk 0:01:32]} 25. Qf4 {[%clk 0:01:16]}  b5 {[%clk 0:01:16]} 26. Bb3 {[%clk 0:01:15]}  b4 {[%clk 0:01:16]} 27. c4 {[%clk 0:00:55]}  Qa3+ {[%clk 0:01:03]} 28. Kb1 {[%clk 0:00:55]}  Rxb3+ {[%clk 0:01:02]} 29. axb3 {[%clk 0:00:56]}  Qxb3+ {[%clk 0:01:02]} 30. Kc1 {[%clk 0:00:49]}  Qa3+ {[%clk 0:00:59]} 31. Rb2 {[%clk 0:00:43]}  Qc3+ {[%clk 0:00:59]} 32. Kb1 {[%clk 0:00:39]}  b3 {[%clk 0:00:52]} 33. Rg1 {[%clk 0:00:31]}  Qxc4 {[%clk 0:00:50]} 34. Qd2 {[%clk 0:00:24]}  Rh3 {[%clk 0:00:42]} 35. Rc1 {[%clk 0:00:23]}  Qd5 {[%clk 0:00:32]} 36. Rc3 {[%clk 0:00:17]}  Qh1+ {[%clk 0:00:31]} 37. Rc1 {[%clk 0:00:17]}  Qe4+ {[%clk 0:00:29]} 38. Ka1 {[%clk 0:00:15]}  Qd5 {[%clk 0:00:29]} 39. Rc3 {[%clk 0:00:14]}  Qh1+ {[%clk 0:00:19]} 40. Rb1 {[%clk 0:00:14]}  Qxh2 {[%clk 0:00:17]} 41. Qxh2 {[%clk 0:00:14]}  Rxh2 {[%clk 0:00:17]} 42. Rcxb3 {[%clk 0:00:15]}  c5 {[%clk 0:00:15]} 43. Rb8+ {[%clk 0:00:14]}  Kc7 {[%clk 0:00:16]} 44. dxc5 {[%clk 0:00:13]}  Bc6 {[%clk 0:00:14]} 45. Rf8 {[%clk 0:00:12]}  Rf2 {[%clk 0:00:13]} 46. Rg1 {[%clk 0:00:11]}  Bd5 {[%clk 0:00:10]} 47. Rg7 {[%clk 0:00:10]}  Kc6 {[%clk 0:00:09]} 48. Rfxf7 {[%clk 0:00:10]}  Ra2+ {[%clk 0:00:09]} 49. Kb1 {[%clk 0:00:10]}  Kxc5 {[%clk 0:00:10]} 50. Rc7+ {[%clk 0:00:10]}  Kd4 {[%clk 0:00:09]} 51. Rxa7 {[%clk 0:00:10]}  Rxa7 {[%clk 0:00:09]} 52. Rxa7 {[%clk 0:00:11]}  Kxe5 {[%clk 0:00:10]} 53. Kb2 {[%clk 0:00:12]}  Kd4 {[%clk 0:00:10]} 54. Ra4+ {[%clk 0:00:10]}  Ke5 {[%clk 0:00:10]} 55. Kc3 {[%clk 0:00:11]}  Kd6 {[%clk 0:00:09]} 56. Rh4 {[%clk 0:00:12]}  Ke5 {[%clk 0:00:09]} 57. Kd3 {[%clk 0:00:12]}  Kf5 {[%clk 0:00:07]} 58. Ke3 {[%clk 0:00:13]}  Ke5 {[%clk 0:00:07]} 59. Rb4 {[%clk 0:00:13]}  Kd6 {[%clk 0:00:07]} 60. Kd4 {[%clk 0:00:14]}  Kc6 {[%clk 0:00:07]} 61. Ke5 {[%clk 0:00:14]}  Kc5 {[%clk 0:00:07]} 62. Rb1 {[%clk 0:00:15]}  Kc4 {[%clk 0:00:08]} 63. Rc1+ {[%clk 0:00:16]}  Kd3 {[%clk 0:00:08]} 64. Rc7 {[%clk 0:00:14]}  Ke3 {[%clk 0:00:08]} 65. Rc3+ {[%clk 0:00:14]}  Kd2 {[%clk 0:00:08]} 66. Kd4 {[%clk 0:00:15]}  e5+ {[%clk 0:00:05]} 67. Kxe5 {[%clk 0:00:13]}  Kxc3 {[%clk 0:00:05]} 1/2-1/2


[Site "https://www.chess.com"]

[Event "Titled Tuesday Blitz March 29 Late 2022"]
[White "Kalavannan, Koby"]
[Black "Fathy, Elameir"]
[WhiteFideId "425753"]
[BlackFideId "10600396"]
[WhiteElo "1927"]
[BlackElo "2311"]
[Result "1-0"]
[Round "02"]
[TimeControl "180+1"]
[Date "2022.03.30"]
[WhiteClock "0:01:17"]
[BlackClock "0:00:09"]

1. d4 {[%clk 0:02:58]}  d5 {[%clk 0:02:54]} 2. Nf3 {[%clk 0:02:42]}  Nf6 {[%clk 0:02:53]} 3. c4 {[%clk 0:02:42]}  c6 {[%clk 0:02:50]} 4. Qb3 {[%clk 0:02:42]}  dxc4 {[%clk 0:02:42]} 5. Qxc4 {[%clk 0:02:43]}  Bf5 {[%clk 0:02:43]} 6. Nc3 {[%clk 0:02:43]}  e6 {[%clk 0:02:43]} 7. g3 {[%clk 0:02:42]}  Be7 {[%clk 0:02:42]} 8. Bg2 {[%clk 0:02:42]}  O-O {[%clk 0:02:43]} 9. O-O {[%clk 0:02:42]}  Nbd7 {[%clk 0:02:43]} 10. Bg5 {[%clk 0:02:25]}  Nb6 {[%clk 0:02:38]} 11. Qb3 {[%clk 0:02:19]}  Nbd5 {[%clk 0:02:36]} 12. Qxb7 {[%clk 0:02:11]}  Nxc3 {[%clk 0:01:52]} 13. bxc3 {[%clk 0:02:10]}  Be4 {[%clk 0:01:52]} 14. Ne5 {[%clk 0:02:07]}  Bxg2 {[%clk 0:01:53]} 15. Kxg2 {[%clk 0:02:08]}  c5 {[%clk 0:01:44]} 16. e4 {[%clk 0:01:57]}  Rb8 {[%clk 0:01:12]} 17. Qxa7 {[%clk 0:01:57]}  Ra8 {[%clk 0:01:12]} 18. Qb7 {[%clk 0:01:57]}  Rb8 {[%clk 0:01:12]} 19. Qa6 {[%clk 0:01:57]}  Ra8 {[%clk 0:01:11]} 20. Qe2 {[%clk 0:01:46]}  cxd4 {[%clk 0:01:00]} 21. Nc6 {[%clk 0:01:46]}  Qd7 {[%clk 0:00:58]} 22. Nxe7+ {[%clk 0:01:38]}  Qxe7 {[%clk 0:00:58]} 23. e5 {[%clk 0:01:33]}  Qb7+ {[%clk 0:00:56]} 24. Qf3 {[%clk 0:01:33]}  Ne4 {[%clk 0:00:35]} 25. Rfe1 {[%clk 0:01:28]}  Nc5 {[%clk 0:00:11]} 26. Qxb7 {[%clk 0:01:27]}  Nxb7 {[%clk 0:00:12]} 27. cxd4 {[%clk 0:01:27]}  Ra3 {[%clk 0:00:09]} 28. Re3 {[%clk 0:01:25]}  Ra4 {[%clk 0:00:09]} 29. Rb3 {[%clk 0:01:17]}  Rfa8 {[%clk 0:00:09]} 1-0


[Site "https://www.chess.com"]

[Event "Titled Tuesday Blitz March 29 Late 2022"]
[White "Kamsky, Gata"]
[Black "Zivkovic, Nemanja"]
[WhiteFideId "2000024"]
[BlackFideId "942154"]
[WhiteElo "2645"]
[BlackElo "2388"]
[Result "1-0"]
[Round "02"]
[TimeControl "180+1"]
[Date "2022.03.29"]
[WhiteClock "0:00:46"]
[BlackClock "0:00:17"]

1. d4 {[%clk 0:03:00]}  Nf6 {[%clk 0:02:59]} 2. Bf4 {[%clk 0:02:59]}  e6 {[%clk 0:02:56]} 3. e3 {[%clk 0:02:59]}  c5 {[%clk 0:02:48]} 4. c3 {[%clk 0:02:58]}  cxd4 {[%clk 0:02:47]} 5. exd4 {[%clk 0:02:58]}  b6 {[%clk 0:02:48]} 6. Nf3 {[%clk 0:02:57]}  Bb7 {[%clk 0:02:45]} 7. h3 {[%clk 0:02:55]}  d6 {[%clk 0:02:42]} 8. a4 {[%clk 0:02:53]}  a6 {[%clk 0:02:41]} 9. Be2 {[%clk 0:02:50]}  Be7 {[%clk 0:02:41]} 10. O-O {[%clk 0:02:50]}  O-O {[%clk 0:02:41]} 11. Bh2 {[%clk 0:02:49]}  Nbd7 {[%clk 0:02:41]} 12. Nbd2 {[%clk 0:02:42]}  Re8 {[%clk 0:02:35]} 13. Re1 {[%clk 0:02:36]}  Qc7 {[%clk 0:02:28]} 14. c4 {[%clk 0:02:35]}  Qd8 {[%clk 0:02:18]} 15. b4 {[%clk 0:02:31]}  a5 {[%clk 0:02:16]} 16. b5 {[%clk 0:02:31]}  Ne4 {[%clk 0:02:11]} 17. Nxe4 {[%clk 0:02:27]}  Bxe4 {[%clk 0:02:11]} 18. Nd2 {[%clk 0:02:26]}  Bb7 {[%clk 0:02:08]} 19. Bf3 {[%clk 0:02:21]}  Qc8 {[%clk 0:01:54]} 20. Bxb7 {[%clk 0:02:15]}  Qxb7 {[%clk 0:01:54]} 21. Ne4 {[%clk 0:02:13]}  Rac8 {[%clk 0:01:46]} 22. Bxd6 {[%clk 0:02:09]}  Nf6 {[%clk 0:01:31]} 23. Nxf6+ {[%clk 0:02:02]}  Bxf6 {[%clk 0:01:28]} 24. Rc1 {[%clk 0:02:00]}  Red8 {[%clk 0:01:22]} 25. c5 {[%clk 0:01:59]}  Qd5 {[%clk 0:01:03]} 26. Qf3 {[%clk 0:01:31]}  Qxf3 {[%clk 0:00:43]} 27. gxf3 {[%clk 0:01:29]}  Bxd4 {[%clk 0:00:44]} 28. cxb6 {[%clk 0:01:18]}  Bxb6 {[%clk 0:00:39]} 29. Bf4 {[%clk 0:01:14]}  Kf8 {[%clk 0:00:36]} 30. Rxc8 {[%clk 0:01:00]}  Rxc8 {[%clk 0:00:37]} 31. Rc1 {[%clk 0:01:00]}  Rxc1+ {[%clk 0:00:31]} 32. Bxc1 {[%clk 0:01:00]}  Ke7 {[%clk 0:00:32]} 33. Be3 {[%clk 0:01:01]}  Bc7 {[%clk 0:00:31]} 34. Ba7 {[%clk 0:00:57]}  Bd6 {[%clk 0:00:18]} 35. Bd4 {[%clk 0:00:54]}  g6 {[%clk 0:00:17]} 36. Bc3 {[%clk 0:00:51]}  Bb4 {[%clk 0:00:16]} 37. Be5 {[%clk 0:00:48]}  Bd6 {[%clk 0:00:15]} 38. Bxd6+ {[%clk 0:00:47]}  Kxd6 {[%clk 0:00:16]} 39. f4 {[%clk 0:00:47]}  e5 {[%clk 0:00:16]} 40. fxe5+ {[%clk 0:00:46]}  Kxe5 {[%clk 0:00:17]} 41. Kg2 {[%clk 0:00:46]} 1-0


[Site "https://www.chess.com"]

[Event "Titled Tuesday Blitz March 29 Late 2022"]
[White "Karttunen, Mika"]
[Black "Steinberg, Nitzan"]
[WhiteFideId "502081"]
[BlackFideId "2801795"]
[WhiteElo "2343"]
[BlackElo "2440"]
[Result "1-0"]
[Round "02"]
[TimeControl "180+1"]
[Date "2022.03.29"]
[WhiteClock "0:00:14"]
[BlackClock "0:00:14"]

1. e4 {[%clk 0:03:00]}  c5 {[%clk 0:02:59]} 2. Nf3 {[%clk 0:03:00]}  Nc6 {[%clk 0:02:59]} 3. d4 {[%clk 0:03:01]}  cxd4 {[%clk 0:02:59]} 4. Nxd4 {[%clk 0:03:02]}  e6 {[%clk 0:02:58]} 5. Nc3 {[%clk 0:03:02]}  Qc7 {[%clk 0:02:59]} 6. Be3 {[%clk 0:03:02]}  a6 {[%clk 0:02:59]} 7. Qf3 {[%clk 0:03:02]}  b5 {[%clk 0:02:53]} 8. a3 {[%clk 0:02:45]}  Bb7 {[%clk 0:02:52]} 9. Nxc6 {[%clk 0:02:42]}  Qxc6 {[%clk 0:02:46]} 10. Bd3 {[%clk 0:02:40]}  Nf6 {[%clk 0:02:46]} 11. Bd4 {[%clk 0:02:37]}  Be7 {[%clk 0:02:40]} 12. O-O {[%clk 0:02:31]}  O-O {[%clk 0:02:37]} 13. Qh3 {[%clk 0:02:20]}  Ne8 {[%clk 0:01:34]} 14. e5 {[%clk 0:02:12]}  g6 {[%clk 0:01:34]} 15. Rae1 {[%clk 0:02:01]}  f5 {[%clk 0:01:33]} 16. exf6 {[%clk 0:01:47]}  Bxf6 {[%clk 0:01:33]} 17. Be4 {[%clk 0:01:18]}  Qc7 {[%clk 0:01:33]} 18. Bxb7 {[%clk 0:01:12]}  Qxb7 {[%clk 0:01:34]} 19. Rd1 {[%clk 0:00:46]}  Rc8 {[%clk 0:01:34]} 20. Bxf6 {[%clk 0:00:35]}  Nxf6 {[%clk 0:01:34]} 21. Rd2 {[%clk 0:00:35]}  Rc5 {[%clk 0:01:31]} 22. Rfd1 {[%clk 0:00:33]}  Rfc8 {[%clk 0:01:29]} 23. Qh4 {[%clk 0:00:30]}  Kg7 {[%clk 0:01:26]} 24. Qd4 {[%clk 0:00:30]}  Rc4 {[%clk 0:01:21]} 25. Qd6 {[%clk 0:00:28]}  Kf7 {[%clk 0:01:16]} 26. h3 {[%clk 0:00:25]}  R8c6 {[%clk 0:01:13]} 27. Qd3 {[%clk 0:00:23]}  d5 {[%clk 0:01:11]} 28. Qf3 {[%clk 0:00:21]}  Kg7 {[%clk 0:01:04]} 29. Qd3 {[%clk 0:00:20]}  b4 {[%clk 0:01:04]} 30. axb4 {[%clk 0:00:20]}  Qxb4 {[%clk 0:01:05]} 31. Ne2 {[%clk 0:00:16]}  Ne4 {[%clk 0:01:03]} 32. Nd4 {[%clk 0:00:15]}  Rb6 {[%clk 0:00:39]} 33. c3 {[%clk 0:00:16]}  Qd6 {[%clk 0:00:24]} 34. Re2 {[%clk 0:00:16]}  e5 {[%clk 0:00:24]} 35. Nf3 {[%clk 0:00:16]}  Nc5 {[%clk 0:00:17]} 36. Qxc4 {[%clk 0:00:14]}  dxc4 {[%clk 0:00:18]} 37. Rxd6 {[%clk 0:00:15]}  Rxd6 {[%clk 0:00:19]} 38. Nxe5 {[%clk 0:00:15]}  Re6 {[%clk 0:00:19]} 39. Kf1 {[%clk 0:00:15]}  Kf6 {[%clk 0:00:14]} 40. Nxc4 {[%clk 0:00:16]}  Rc6 {[%clk 0:00:15]} 41. Ne3 {[%clk 0:00:15]}  Nd3 {[%clk 0:00:14]} 42. f3 {[%clk 0:00:15]}  Nf4 {[%clk 0:00:14]} 43. Ng4+ {[%clk 0:00:16]}  Kf7 {[%clk 0:00:14]} 44. Ne5+ {[%clk 0:00:14]} 1-0


[Site "https://www.chess.com"]

[Event "Titled Tuesday Blitz March 29 Late 2022"]
[White "Kozina, Anastasia"]
[Black "Vusatiuk, Vladimir"]
[WhiteFideId "24174017"]
[BlackFideId "14118610"]
[WhiteElo "1993"]
[BlackElo "2157"]
[Result "0-1"]
[Round "02"]
[TimeControl "180+1"]
[Date "2022.03.30"]
[WhiteClock "0:00:13"]
[BlackClock "0:00:10"]

1. e4 {[%clk 0:03:00]}  c5 {[%clk 0:02:59]} 2. Nf3 {[%clk 0:02:48]}  d6 {[%clk 0:02:59]} 3. d4 {[%clk 0:02:48]}  cxd4 {[%clk 0:02:59]} 4. Nxd4 {[%clk 0:02:48]}  Nf6 {[%clk 0:03:00]} 5. Nc3 {[%clk 0:02:49]}  Nc6 {[%clk 0:02:59]} 6. Bg5 {[%clk 0:02:45]}  Bd7 {[%clk 0:02:59]} 7. Be2 {[%clk 0:02:43]}  Rc8 {[%clk 0:02:51]} 8. Qd2 {[%clk 0:02:39]}  Nxd4 {[%clk 0:02:50]} 9. Qxd4 {[%clk 0:02:39]}  Qa5 {[%clk 0:02:50]} 10. Bd2 {[%clk 0:02:37]}  Qc5 {[%clk 0:02:40]} 11. Qxc5 {[%clk 0:02:30]}  Rxc5 {[%clk 0:02:36]} 12. O-O-O {[%clk 0:02:30]}  a6 {[%clk 0:02:33]} 13. Be3 {[%clk 0:02:28]}  Rc8 {[%clk 0:02:30]} 14. Bf3 {[%clk 0:02:24]}  Bc6 {[%clk 0:02:26]} 15. Nd5 {[%clk 0:02:20]}  h5 {[%clk 0:02:10]} 16. h3 {[%clk 0:02:09]}  Nd7 {[%clk 0:01:51]} 17. Rhe1 {[%clk 0:02:00]}  e6 {[%clk 0:01:33]} 18. Nc3 {[%clk 0:01:55]}  b5 {[%clk 0:01:21]} 19. a3 {[%clk 0:01:51]}  a5 {[%clk 0:01:04]} 20. Bf4 {[%clk 0:01:35]}  b4 {[%clk 0:01:01]} 21. axb4 {[%clk 0:01:31]}  axb4 {[%clk 0:01:01]} 22. Ne2 {[%clk 0:01:26]}  Ba4 {[%clk 0:00:58]} 23. Rd2 {[%clk 0:01:19]}  Nb6 {[%clk 0:00:47]} 24. Ng3 {[%clk 0:00:54]}  Nc4 {[%clk 0:00:35]} 25. Rde2 {[%clk 0:00:54]}  h4 {[%clk 0:00:25]} 26. Nf1 {[%clk 0:00:52]}  b3 {[%clk 0:00:23]} 27. c3 {[%clk 0:00:44]}  Bb5 {[%clk 0:00:22]} 28. Ne3 {[%clk 0:00:35]}  Ra8 {[%clk 0:00:18]} 29. Kb1 {[%clk 0:00:31]}  Ne5 {[%clk 0:00:18]} 30. Rd2 {[%clk 0:00:26]}  Bd3+ {[%clk 0:00:16]} 31. Rxd3 {[%clk 0:00:20]}  Nxd3 {[%clk 0:00:17]} 32. Rd1 {[%clk 0:00:18]}  Nxf4 {[%clk 0:00:17]} 33. Nc4 {[%clk 0:00:18]}  d5 {[%clk 0:00:15]} 34. exd5 {[%clk 0:00:17]}  exd5 {[%clk 0:00:16]} 35. Ne5 {[%clk 0:00:17]}  Bd6 {[%clk 0:00:15]} 36. Nc6 {[%clk 0:00:17]}  O-O {[%clk 0:00:14]} 37. Nd4 {[%clk 0:00:16]}  Rfe8 {[%clk 0:00:14]} 38. Nf5 {[%clk 0:00:16]}  Be5 {[%clk 0:00:12]} 39. Nxh4 {[%clk 0:00:15]}  Ra2 {[%clk 0:00:11]} 40. g3 {[%clk 0:00:15]}  Rea8 {[%clk 0:00:11]} 41. Kc1 {[%clk 0:00:13]}  Ra1+ {[%clk 0:00:10]} 42. Kd2 {[%clk 0:00:13]}  Rxd1+ {[%clk 0:00:10]} 43. Kxd1 {[%clk 0:00:14]}  Nd3 {[%clk 0:00:11]} 44. Kd2 {[%clk 0:00:15]}  Nxb2 {[%clk 0:00:11]} 45. Nf5 {[%clk 0:00:15]}  Nc4+ {[%clk 0:00:11]} 46. Kd3 {[%clk 0:00:13]}  b2 {[%clk 0:00:11]} 47. Ne7+ {[%clk 0:00:14]}  Kf8 {[%clk 0:00:10]} 48. Nxd5 {[%clk 0:00:13]}  b1=Q+ {[%clk 0:00:10]} 0-1


[Site "https://www.chess.com"]

[Event "Titled Tuesday Blitz March 29 Late 2022"]
[White "Le Goff, Ronan"]
[Black "Kaganskiy, Gleb"]
[WhiteFideId "612073"]
[BlackFideId "4132025"]
[WhiteElo "2276"]
[BlackElo "2165"]
[Result "1-0"]
[Round "02"]
[TimeControl "180+1"]
[Date "2022.03.30"]
[WhiteClock "0:01:56"]
[BlackClock "0:01:02"]

1. d4 {[%clk 0:03:00]}  Nf6 {[%clk 0:02:50]} 2. Nf3 {[%clk 0:03:00]}  d5 {[%clk 0:02:48]} 3. Bf4 {[%clk 0:02:58]}  c5 {[%clk 0:02:47]} 4. e3 {[%clk 0:02:58]}  Nc6 {[%clk 0:02:48]} 5. Nbd2 {[%clk 0:02:57]}  cxd4 {[%clk 0:02:46]} 6. exd4 {[%clk 0:02:57]}  Bg4 {[%clk 0:02:46]} 7. c3 {[%clk 0:02:57]}  e6 {[%clk 0:02:46]} 8. Qb3 {[%clk 0:02:56]}  Qc8 {[%clk 0:02:45]} 9. Ne5 {[%clk 0:02:55]}  Bh5 {[%clk 0:02:36]} 10. Bb5 {[%clk 0:02:53]}  Nd7 {[%clk 0:02:34]} 11. Nxd7 {[%clk 0:02:50]}  Qxd7 {[%clk 0:02:33]} 12. O-O {[%clk 0:02:50]}  Bd6 {[%clk 0:02:30]} 13. Bxd6 {[%clk 0:02:45]}  Qxd6 {[%clk 0:02:31]} 14. Bd3 {[%clk 0:02:40]}  Bg6 {[%clk 0:02:30]} 15. Qxb7 {[%clk 0:02:33]}  Rb8 {[%clk 0:02:22]} 16. Qa6 {[%clk 0:02:33]}  Bxd3 {[%clk 0:02:13]} 17. Qxd3 {[%clk 0:02:32]}  Rxb2 {[%clk 0:02:12]} 18. Nb3 {[%clk 0:02:32]}  O-O {[%clk 0:02:08]} 19. Rfe1 {[%clk 0:02:23]}  Rc8 {[%clk 0:01:48]} 20. Qd1 {[%clk 0:02:18]}  Qa3 {[%clk 0:01:45]} 21. Qc1 {[%clk 0:02:11]}  a5 {[%clk 0:01:38]} 22. Nc5 {[%clk 0:02:10]}  Rcb8 {[%clk 0:01:20]} 23. Nd3 {[%clk 0:02:09]}  a4 {[%clk 0:01:10]} 24. Nxb2 {[%clk 0:02:08]}  Qxb2 {[%clk 0:01:08]} 25. Qxb2 {[%clk 0:02:00]}  Rxb2 {[%clk 0:01:09]} 26. Reb1 {[%clk 0:02:00]}  Rc2 {[%clk 0:01:07]} 27. Rb6 {[%clk 0:01:56]}  Rxc3 {[%clk 0:01:06]} 28. Ra6 {[%clk 0:01:57]}  a3 {[%clk 0:01:05]} 29. Ra8+ {[%clk 0:01:56]}  Nb8 {[%clk 0:01:01]} 30. Rxb8+ {[%clk 0:01:56]}  Rc8 {[%clk 0:01:02]} 31. Rxc8# {[%clk 0:01:56]} 1-0


[Site "https://www.chess.com"]

[Event "Titled Tuesday Blitz March 29 Late 2022"]
[White "Mahajan, Rushaan"]
[Black "Winkels, Marcel"]
[WhiteFideId "30934222"]
[BlackFideId "1003887"]
[WhiteElo "1897"]
[BlackElo "1900"]
[Result "1-0"]
[Round "02"]
[TimeControl "180+1"]
[Date "2022.03.30"]
[WhiteClock "0:01:02"]
[BlackClock "0:00:56"]

1. Nf3 {[%clk 0:03:00]}  Nf6 {[%clk 0:02:57]} 2. b3 {[%clk 0:03:00]}  g6 {[%clk 0:02:55]} 3. Ba3 {[%clk 0:02:59]}  Bg7 {[%clk 0:02:55]} 4. Bb2 {[%clk 0:02:59]}  O-O {[%clk 0:02:54]} 5. g3 {[%clk 0:02:59]}  c6 {[%clk 0:02:50]} 6. Bg2 {[%clk 0:02:59]}  d5 {[%clk 0:02:51]} 7. O-O {[%clk 0:02:59]}  Bf5 {[%clk 0:02:50]} 8. c4 {[%clk 0:02:55]}  a5 {[%clk 0:02:47]} 9. Nc3 {[%clk 0:02:52]}  Ne4 {[%clk 0:02:39]} 10. Na4 {[%clk 0:02:43]}  Nf6 {[%clk 0:02:29]} 11. d4 {[%clk 0:02:33]}  Na6 {[%clk 0:02:27]} 12. Rc1 {[%clk 0:02:32]}  Nb4 {[%clk 0:02:25]} 13. a3 {[%clk 0:02:32]}  Na6 {[%clk 0:02:21]} 14. cxd5 {[%clk 0:02:32]}  cxd5 {[%clk 0:02:19]} 15. Ne5 {[%clk 0:02:30]}  Ne4 {[%clk 0:02:11]} 16. g4 {[%clk 0:02:24]}  Be6 {[%clk 0:02:00]} 17. h3 {[%clk 0:02:21]}  f5 {[%clk 0:01:50]} 18. f3 {[%clk 0:02:12]}  Nd6 {[%clk 0:01:48]} 19. Nd3 {[%clk 0:02:11]}  b5 {[%clk 0:01:35]} 20. Nac5 {[%clk 0:02:10]}  Nxc5 {[%clk 0:01:34]} 21. dxc5 {[%clk 0:02:08]}  Bxb2 {[%clk 0:01:32]} 22. Nxb2 {[%clk 0:02:02]}  Nf7 {[%clk 0:01:28]} 23. Qd4 {[%clk 0:01:58]}  Rc8 {[%clk 0:01:21]} 24. Rfd1 {[%clk 0:01:28]}  Qc7 {[%clk 0:01:19]} 25. f4 {[%clk 0:01:22]}  fxg4 {[%clk 0:01:17]} 26. hxg4 {[%clk 0:01:21]}  Bxg4 {[%clk 0:01:16]} 27. Bxd5 {[%clk 0:01:22]}  Bxe2 {[%clk 0:01:06]} 28. Re1 {[%clk 0:01:18]}  Bg4 {[%clk 0:01:03]} 29. Nd3 {[%clk 0:01:17]}  Bf5 {[%clk 0:01:02]} 30. Ne5 {[%clk 0:01:11]}  e6 {[%clk 0:01:02]} 31. Nc6 {[%clk 0:01:03]}  exd5 {[%clk 0:00:56]} 32. Ne7+ {[%clk 0:01:02]} 1-0


[Site "https://www.chess.com"]